fUSD/lending_fUSD_20260429
["ID","MTS","AMOUNT","RATE_DAILY","PERIOD"]
[421308933,1777401486660,-75023.74529509,0.00035,120]
[421308934,1777401486711,-6304.35,0.00035,120]
[421308935,1777401486764,-1070.32,0.00035,90]
[421308936,1777401486817,-411.53587614,0.00035,120]
[421308937,1777401487035,-411.53587614,0.00035095,120]
[421308938,1777401487090,-411.53587614,0.00035189,120]
[421308939,1777401487146,-772.0,0.00035269,30]
[421308940,1777401487201,-212.0,0.00035269,30]
[421308941,1777401487257,-583.0,0.00035269,30]
[421308942,1777401487312,-900.0,0.00035269,30]
[421308943,1777401487369,-1150.0,0.00035269,30]
[421308944,1777401487424,-311.0,0.00035269,30]
[421308945,1777401487481,-248.0,0.00035269,30]
[421308946,1777401487538,-1376.0,0.00035269,30]
[421308947,1777401487595,-445.0,0.00035269,30]
[421308948,1777401487653,-409.0,0.00035269,30]
[421308949,1777401487710,-2727.0,0.00035269,30]
[421308950,1777401487765,-411.53587614,0.00035284,120]
[421308951,1777401487820,-411.53587614,0.00035378,120]
[421308952,1777401487878,-500.0,0.0003544,30]
[421308953,1777401487933,-411.53587614,0.00035473,120]
[421308954,1777401487988,-411.53587614,0.00035567,120]
[421308955,1777401488044,-411.53587614,0.00035662,120]
[421308956,1777401488100,-230.0,0.000357,30]
[421308957,1777401488157,-411.53587614,0.00035756,120]
[421308958,1777401488211,-411.53587614,0.00035851,120]
[421308959,1777401488266,-411.53587614,0.00035945,120]
[421308960,1777401488320,-334.85,0.0003611,30]
[421308961,1777401488375,-200.0,0.00036161,40]
[421308962,1777401488431,-772.0,0.00036269,30]
[421308963,1777401488485,-212.0,0.00036269,30]
[421308964,1777401488540,-583.0,0.00036269,30]
[421308965,1777401488594,-900.0,0.00036269,30]
[421308966,1777401488649,-1150.0,0.00036269,30]
[421308967,1777401488704,-311.0,0.00036269,30]
[421308968,1777401488759,-248.0,0.00036269,30]
[421308969,1777401488813,-1376.0,0.00036269,30]
[421308970,1777401488867,-445.0,0.00036269,30]
[421308971,1777401488922,-409.0,0.00036269,30]
[421308972,1777401488978,-2727.0,0.00036269,30]
[421308973,1777401489031,-2339.13,0.00036384,45]
[421308974,1777401489084,-1139.4,0.00036392,30]
[421308975,1777401489135,-172.067,0.0003641,45]
[421308976,1777401489190,-174.0,0.00036468,120]
[421308977,1777401489245,-500.0,0.00036503,35]
[421308978,1777401489298,-1139.4,0.00036793,30]
[421308979,1777401489351,-171.62,0.00036825,120]
[421308980,1777401489403,-180.81,0.00036825,120]
[421308981,1777401489455,-180.81,0.00036825,120]
[421308982,1777401489507,-180.81,0.00036825,120]
[421308983,1777401489559,-180.81,0.00036825,120]
[421308984,1777401489612,-180.79482551,0.00036825,120]
[421308985,1777401489664,-167.93,0.00036825,120]
[421308986,1777401489718,-167.93,0.00036825,120]
[421308987,1777401489771,-167.93,0.00036825,120]
[421308988,1777401489822,-167.93,0.00036825,120]
[421308989,1777401489874,-167.94,0.00036825,120]
[421308990,1777401489928,-209.0,0.0003689,30]
[421308991,1777401489982,-167.0,0.000369,120]
[421308992,1777401490034,-1008.5,0.00037,30]
[421308993,1777401490086,-1139.4,0.00037195,30]
[421308994,1777401490138,-187.33530419,0.000372,120]
[421308995,1777401490192,-187.33530418,0.000372,120]
[421308996,1777401490246,-772.0,0.00037269,30]
[421308997,1777401490300,-212.0,0.00037269,30]
[421308998,1777401490355,-583.0,0.00037269,30]
[421308999,1777401490410,-900.0,0.00037269,30]
[421309000,1777401490465,-1150.0,0.00037269,30]
[421309001,1777401490519,-311.0,0.00037269,30]
[421309002,1777401490572,-248.0,0.00037269,30]
[421309003,1777401490627,-1376.0,0.00037269,30]
[421309004,1777401490682,-445.0,0.00037269,30]
[421309005,1777401490735,-409.0,0.00037269,30]
[421309006,1777401490789,-2727.0,0.00037269,30]
[421309007,1777401490843,-215.88722127,0.00037453,120]
[421309008,1777401490898,-1139.4,0.00037597,30]
[421309009,1777401490951,-500.0,0.00037598,41]
[421309010,1777401491007,-162.86817176,0.00037725,120]
[421309011,1777401491061,-334.85,0.00037918,30]
[421309012,1777401491114,-1139.4,0.00037999,30]
[421309013,1777401491166,-181.72593854,0.00038,120]
[421309014,1777401491220,-1511.17932229,0.00038,120]
[421309015,1777401491273,-320.50823713,0.000381,33]
[421309016,1777401491328,-150.0,0.0003825,30]
[421309017,1777401491382,-210.0,0.0003825,30]
[421309018,1777401491443,-642.32,0.00038356,120]
[421309019,1777401491497,-421.46,0.00038356,120]
[421309020,1777401491552,-1139.4,0.00038401,30]
[421309021,1777401491606,-506.85287325,0.00038452,31]
[421309022,1777401491659,-1500.0,0.000385,120]
[421309023,1777401491713,-174.0,0.00038552,30]
[421309024,1777401491768,-150.0,0.00038575,30]
[421309025,1777401491820,-242.0,0.00038575,30]
[421309026,1777401491874,-1818.0,0.0003863,120]
[421309027,1777401491926,-1818.0,0.0003863,90]
[421309028,1777401491977,-500.0,0.00038726,47]
[421309029,1777401492028,-1139.4,0.00038803,30]
[421309030,1777401492079,-160.5,0.000389,120]
[421309031,1777401492131,-209.0,0.0003891,30]
[421309032,1777401492183,-1500.0,0.00039,120]
[421309033,1777401492237,-1524.0,0.00039,60]
[421309034,1777401492290,-1413.85,0.00039,30]
[421309035,1777401492344,-50000.0,0.0003912,30]
[421309036,1777401492398,-713.755,0.000392,30]
[421309037,1777401492450,-2929.279,0.000392,60]
[421309038,1777401492502,-2929.279,0.000392,120]
[421309039,1777401492553,-2929.27,0.000392,30]
[421309040,1777401492766,-205.0037382,0.000392,120]
[421309041,1777401492822,-1139.4,0.00039205,30]
[421309042,1777401492874,-1500.0,0.000395,120]
[421309043,1777401492927,-1139.4,0.00039607,30]
[421309044,1777401492978,-150.97850443,0.00039643,120]
[421309045,1777401493030,-334.85,0.00039726,30]
[421309046,1777401493080,-334.84499999,0.00039726,120]
[421309047,1777401493129,-150.0,0.00039726,120]
[421309048,1777401493182,-230.0,0.0003981,30]
[421309049,1777401493235,-828.56589104,0.00039878,120]
[421309050,1777401493289,-500.0,0.00039888,53]
[421309051,1777401493341,-7940.0,0.000399,120]
[421309052,1777401493393,-172.4987554,0.000399,120]
[421309053,1777401493446,-198.399027,0.00039903,36]
[421309054,1777401493500,-156.0,0.0004,120]
[421309055,1777401493553,-152.0,0.0004,120]
[421309056,1777401493605,-20814.53822818,0.0004,120]
[421309057,1777401493659,-245.39279339,0.0004,120]
[421309058,1777401493712,-5714.60560691,0.0004,120]
[421309059,1777401493765,-171.16714208,0.0004,120]
[421309060,1777401493817,-157.08827755,0.0004,30]
[421309061,1777401493871,-482.29773596,0.0004,30]
[421309062,1777401493925,-500.0,0.0004,120]
[421309063,1777401493978,-2215.70300864,0.0004,120]
[421309064,1777401494030,-1500.0,0.0004,120]
[421309065,1777401494084,-1500.0,0.0004,120]
[421309066,1777401494140,-1500.0,0.0004,120]
[421309067,1777401494195,-224.19940818,0.0004,120]
[421309068,1777401494249,-1520.43308133,0.0004,120]
[421309069,1777401494302,-167.45364156,0.0004,120]
[421309070,1777401494355,-924.31596303,0.0004,120]
[421309071,1777401494408,-1500.0,0.0004,120]
[421309072,1777401494460,-226.66000813,0.0004,80]
[421309073,1777401494512,-240.0,0.0004,120]
[421309074,1777401494563,-2021.25,0.0004,60]
[421309075,1777401494615,-34098.64777696,0.0004,120]
[421309076,1777401494667,-600.0,0.0004,90]
[421309077,1777401494716,-631.0,0.0004,90]
[421309078,1777401494767,-445.98866603,0.0004,120]
[421309079,1777401494818,-1000.0,0.0004,120]
[421309080,1777401494869,-6974.53935318,0.0004,120]
[421309081,1777401494920,-10200.0,0.0004,120]
[421309082,1777401494972,-78669.87704923,0.0004,30]
[421309083,1777401495024,-4366.61895628,0.0004,120]
[421309084,1777401495075,-30395.59912589,0.0004,120]
[421309085,1777401495127,-69386.51999718,0.0004,120]
[421309086,1777401495179,-160.0,0.0004,120]
[421309087,1777401495231,-160.0,0.0004,30]
[421309088,1777401495284,-339.31,0.0004,120]
[421309089,1777401495338,-202.78,0.0004,120]
[421309090,1777401495391,-341.52,0.0004,120]
[421309091,1777401495445,-385.36,0.0004,120]
[421309092,1777401495500,-708.61,0.0004,120]
[421309093,1777401495554,-13521.0,0.0004,120]
[421309094,1777401495609,-500.0,0.0004,120]
[421309095,1777401495664,-252.07640811,0.0004,120]
[421309096,1777401495720,-8768.56018895,0.00040003,120]
[421309097,1777401495777,-1139.4,0.00040008,30]
[421309098,1777401495830,-359.4279,0.000401,60]
[421309099,1777401495885,-86093.6836,0.00040117,30]
[421309100,1777401495940,-842.38,0.00040168,120]
[421309101,1777401495994,-280.0,0.00040177,71]
[421309102,1777401496050,-842.38,0.00040268,120]
[421309103,1777401496104,-842.38,0.00040368,120]
[421309104,1777401496158,-1202.2899,0.000404,120]
[421309105,1777401496211,-1445.0734,0.000404,120]
[421309106,1777401496266,-1088.6895,0.000404,30]
[421309107,1777401496321,-20440.8081,0.000404,120]
[421309108,1777401496377,-13155.707,0.000404,60]
[421309109,1777401496430,-13155.707,0.000404,60]
[421309110,1777401496484,-13155.7,0.000404,60]
[421309111,1777401496537,-1202.2899,0.000404,120]
[421309112,1777401496591,-1088.6895,0.000404,120]
[421309113,1777401496645,-1139.4,0.0004041,30]
[421309114,1777401496700,-4342.2,0.00040419,120]
[421309115,1777401496755,-382.5,0.00040419,120]
[421309116,1777401496810,-1865.44,0.00040419,120]
[421309117,1777401496869,-12469.66,0.00040419,120]
[421309118,1777401496927,-411.89,0.00040419,120]
[421309119,1777401496985,-842.38,0.00040468,120]
[421309120,1777401497044,-1500.0,0.000405,120]
[421309121,1777401497107,-6711.59,0.00040525,45]
[421309122,1777401497163,-947.38,0.00040557,120]
[421309123,1777401497219,-842.38,0.00040568,120]
[421309124,1777401497274,-210.27988256,0.00040575,62]
[421309125,1777401497332,-174.0,0.00040578,120]
[421309126,1777401497386,-156.0,0.000406,120]
[421309127,1777401497440,-268.53341151,0.00040658,120]
[421309128,1777401497495,-1740.24730393,0.00040663,62]
[421309129,1777401497551,-842.38,0.00040668,120]
[421309130,1777401497608,-2970.91869824,0.00040711,110]
[421309131,1777401497663,-842.38,0.00040768,120]
[421309132,1777401497716,-152.0,0.000408,120]
[421309133,1777401497768,-152.66768798,0.000408,60]
[421309134,1777401497820,-6177.035159,0.000408,60]
[421309135,1777401497873,-11717.0,0.000408,120]
[421309136,1777401497928,-1139.4,0.00040812,120]
[421309137,1777401497982,-842.38,0.00040868,120]
[421309138,1777401498036,-162.1,0.000409,120]
[421309139,1777401498093,-828.54955438,0.000409,30]
[421309140,1777401498147,-209.0,0.0004093,30]
[421309141,1777401498203,-151.0,0.0004095,30]
[421309142,1777401498257,-244.717156,0.0004095,30]
[421309143,1777401498311,-244.717156,0.0004095,30]
[421309144,1777401498364,-151.0,0.0004095,30]
[421309145,1777401498630,-244.717156,0.0004095,30]
[421309146,1777401498684,-233.442321,0.0004095,30]
[421309147,1777401498746,-244.717156,0.0004095,30]
[421309148,1777401498801,-151.0,0.0004095,30]
[421309149,1777401498855,-151.0,0.0004095,30]
[421309150,1777401498909,-151.0,0.0004095,30]
[421309151,1777401498964,-151.0,0.0004095,30]
[421309152,1777401499017,-189.154234,0.0004095,30]
[421309153,1777401499070,-151.0,0.0004095,30]
[421309154,1777401499123,-189.154234,0.0004095,30]
[421309155,1777401499177,-189.154234,0.0004095,30]
[421309156,1777401499232,-189.154234,0.0004095,30]
[421309157,1777401499285,-387.626036,0.0004095,30]
[421309158,1777401499339,-387.626036,0.0004095,30]
[421309159,1777401499391,-387.626036,0.0004095,30]
[421309160,1777401499444,-387.626036,0.0004095,30]
[421309161,1777401499499,-842.38,0.00040968,120]
[421309162,1777401499552,-210.27988256,0.00040981,63]
[421309163,1777401499606,-615.31697475,0.00041,30]
[421309164,1777401499660,-1050.85430781,0.00041,120]
[421309165,1777401499717,-1500.0,0.00041,120]
[421309166,1777401499772,-1500.0,0.00041,120]
[421309167,1777401499825,-1319.0,0.00041,120]
[421309168,1777401499878,-2000.0,0.00041,60]
[421309169,1777401499930,-9236.72633393,0.00041,30]
[421309170,1777401499983,-35000.0,0.00041,30]
[421309171,1777401500037,-29019.0,0.00041,30]
[421309172,1777401500090,-161.16,0.00041,120]
[421309173,1777401500141,-1000.0,0.00041,120]
[421309174,1777401500194,-7646.36872508,0.00041,120]
[421309175,1777401500247,-182.0,0.00041,30]
[421309176,1777401500302,-13521.0,0.00041,120]
[421309177,1777401500358,-669.5612,0.00041002,30]
[421309178,1777401500412,-4775.0652894,0.0004105,120]
[421309179,1777401500468,-842.38,0.00041068,120]
[421309180,1777401500522,-1740.24730392,0.0004107,64]
[421309181,1777401500576,-500.0,0.00041085,60]
[421309182,1777401500630,-820.57309634,0.00041095,120]
[421309183,1777401500685,-508.15574429,0.00041095,30]
[421309184,1777401500739,-500.0,0.00041095,30]
[421309185,1777401500792,-500.0,0.00041095,30]
[421309186,1777401500845,-456.51627551,0.00041095,30]
[421309187,1777401500897,-626.08,0.00041095,120]
[421309188,1777401500950,-500.0,0.00041095,30]
[421309189,1777401501002,-370.64,0.00041095,30]
[421309190,1777401501058,-500.0,0.00041095,120]
[421309191,1777401501110,-500.0,0.00041095,120]
[421309192,1777401501163,-500.0,0.00041095,120]
[421309193,1777401501215,-500.0,0.00041095,120]
[421309194,1777401501268,-500.0,0.00041095,120]
[421309195,1777401501321,-500.0,0.00041095,120]
[421309196,1777401501375,-500.0,0.00041095,120]
[421309197,1777401501427,-500.0,0.00041095,120]
[421309198,1777401501482,-500.0,0.00041095,120]
[421309199,1777401501536,-500.0,0.00041095,120]
[421309200,1777401501592,-500.0,0.00041095,120]
[421309201,1777401501650,-500.0,0.00041095,120]
[421309202,1777401501706,-500.0,0.00041095,120]
[421309203,1777401501763,-500.0,0.00041095,120]
[421309204,1777401501820,-500.0,0.00041095,120]
[421309205,1777401501879,-500.0,0.00041095,120]
[421309206,1777401501938,-500.0,0.00041095,120]
[421309207,1777401501996,-500.0,0.00041095,120]
[421309208,1777401502058,-500.0,0.00041095,120]
[421309209,1777401502119,-500.0,0.00041095,120]
[421309210,1777401502182,-500.0,0.00041095,120]
[421309211,1777401502244,-500.0,0.00041095,120]
[421309212,1777401502305,-500.0,0.00041095,120]
[421309213,1777401502370,-500.0,0.00041095,120]
[421309214,1777401502433,-500.0,0.00041095,120]
[421309215,1777401502494,-500.0,0.00041095,120]
[421309216,1777401502555,-527.50044969,0.00041095,120]
[421309217,1777401502617,-500.0,0.00041095,120]
[421309218,1777401502678,-500.0,0.00041095,120]
[421309219,1777401502742,-500.0,0.00041095,120]
[421309220,1777401502804,-500.0,0.00041095,120]
[421309221,1777401502865,-500.0,0.00041095,120]
[421309222,1777401502926,-500.0,0.00041095,120]
[421309223,1777401502988,-500.0,0.00041095,120]
[421309224,1777401503049,-502.36868974,0.00041095,120]
[421309225,1777401503111,-268.5279008,0.00041095,120]
[421309226,1777401503174,-201.0,0.00041096,30]
[421309227,1777401503229,-2727.0,0.00041096,120]
[421309228,1777401503293,-157.554584,0.00041096,120]
[421309229,1777401503570,887.0,0.00041095,30]
[421309230,1777401503642,1424.0,0.00041095,30]
[421309231,1777401503761,1000.0,0.00019179,30]
[421309232,1777401568012,-204.6299912,0.00030685,30]
[421309233,1777401568069,-1000.0,0.00031963,30]
[421309234,1777401568126,-204.6299912,0.00032493,30]
[421309235,1777401568180,-741.55,0.00032715,90]
[421309236,1777401568236,-170.519,0.00032715,120]
[421309237,1777401568293,-200.0,0.00034,40]
[421309238,1777401568349,-204.6299912,0.00034301,30]
[421309239,1777401568404,-204.6299912,0.0003611,30]
[421309240,1777401568461,-150.0,0.0003726,30]
[421309241,1777401568517,-260.0,0.0003726,30]
[421309242,1777401568571,-204.6299912,0.00037918,30]
[421309243,1777401568633,-150.0,0.00039452,120]
[421309244,1777401568692,-260.0,0.00039452,120]
[421309245,1777401568746,-204.6299912,0.00039726,30]
[421309246,1777401568800,-204.6299912,0.00039726,120]
[421309247,1777401568854,-1000.0,0.00039863,30]
[421309248,1777401568908,-530.0,0.00040951,30]
[421309249,1777401568964,-500.0,0.00041095,120]
[421309250,1777401569016,-500.0,0.00041095,120]
[421309251,1777401569072,-500.0,0.00041095,120]
[421309252,1777401569126,-500.0,0.00041095,120]
[421309253,1777401569178,-500.0,0.00041095,120]
[421309254,1777401569234,-500.0,0.00041095,120]
[421309255,1777401569286,-500.0,0.00041095,120]
[421309256,1777401569339,-500.0,0.00041095,120]
[421309257,1777401569391,-500.0,0.00041095,120]
[421309258,1777401569444,-500.0,0.00041095,120]
[421309259,1777401569496,-500.0,0.00041095,120]
[421309260,1777401569547,-500.0,0.00041095,120]
[421309261,1777401569598,-500.0,0.00041095,120]
[421309262,1777401569650,-500.0,0.00041095,120]
[421309263,1777401569702,-414.42854629,0.00041095,120]
[421309264,1777401569803,391.56886158,0.0004,60]
[421309265,1777401570518,1000.0,0.00019179,30]
[421309266,1777401571321,1000.0,0.00027398,30]
[421309267,1777401571425,14503.95117325,0.0004109,30]
[421309418,1777402231422,-359.7863,8.119e-05,2]
[421309419,1777402231432,-250.0,8.144e-05,2]
[421309420,1777402231443,-257.0,8.219e-05,2]
[421309421,1777402231452,-280.0,8.219e-05,2]
[421309422,1777402231463,-300.0,8.261e-05,2]
[421309423,1777402231472,-1200.0,8.261e-05,2]
[421309424,1777402231482,-300.0,8.261e-05,2]
[421309425,1777402231492,-300.0,8.261e-05,2]
[421309426,1777402231502,-300.0,8.261e-05,2]
[421309427,1777402231515,-1200.0,8.261e-05,2]
[421309428,1777402231525,-5000.0,8.262e-05,2]
[421309429,1777402231535,-5000.0,8.262e-05,2]
[421309430,1777402231544,-300.0,8.262e-05,2]
[421309431,1777402231553,-198.028,8.631e-05,2]
[421309432,1777402231563,-120323.4784,8.631e-05,2]
[421309433,1777402231574,-2891.963,8.73e-05,2]
[421309434,1777402231584,-175.937,8.73e-05,2]
[421309435,1777402231593,-150.0,8.73e-05,2]
[421309436,1777402231603,-445.576,8.731e-05,2]
[421309437,1777402231612,-6786.3412,8.731e-05,2]
[421309438,1777402231622,-17970.2306,8.731e-05,2]
[421309439,1777402231632,-2500.0,8.731e-05,2]
[421309440,1777402231641,-285899.87177768,8.731e-05,2]
[421309441,1777402231654,-52632.00791723,8.731e-05,2]
[421309442,1777402231666,-230233.23009813,8.731e-05,2]
[421309443,1777402231678,-1254.41808677,8.731e-05,2]
[421309444,1777402231689,-14988.75410028,8.731e-05,2]
[421309445,1777402231704,-500.0,8.731e-05,2]
[421309458,1777402231854,-457.62893016,8.73e-05,2]
[421309485,1777402237714,-42.37106984,8.73e-05,2]
[421309486,1777402237724,-373.15435436,8.73e-05,2]
[421309487,1777402237734,-157.59387478,8.73e-05,2]
[421309488,1777402237744,-500.0,8.73e-05,2]
[421309489,1777402237754,-290.45636381,8.73e-05,2]
[421309490,1777402237763,-500.0,8.73e-05,2]
[421309491,1777402237773,-500.0,8.73e-05,2]
[421309492,1777402237782,-375.68729442,8.73e-05,2]
[421309493,1777402237791,-2578.41211991,8.731e-05,2]
[421309494,1777402237801,-102.47284494,8.83e-05,2]
[421309495,1777402237813,-462.67715506,8.83e-05,2]
[421309496,1777402237823,-250.0,8.83e-05,2]
[421309497,1777402237832,-191.46004494,8.931e-05,2]
[421309498,1777402237856,-4808.53995506,8.931e-05,2]
[421309499,1777402237866,-300.0,8.931e-05,2]
[421309500,1777402237875,-500.0,8.931e-05,2]
[421309501,1777402237884,-500.0,8.931e-05,2]
[421309502,1777402237894,-300.0,8.931e-05,2]
[421309503,1777402237904,-2681.50741031,8.931e-05,2]
[421309504,1777402237913,-250.0,8.931e-05,2]
[421309505,1777402237923,-420.0,9.087e-05,2]
[421309506,1777402237933,-209.0,9.087e-05,2]
[421309507,1777402237942,-420.0,9.087e-05,2]
[421309508,1777402237952,-1680.0,9.087e-05,2]
[421309509,1777402237962,-565.15,9.104e-05,2]
[421309510,1777402237971,-434.0,9.365e-05,2]
[421309511,1777402237980,-174.0,9.365e-05,2]
[421309512,1777402237990,-565.15,9.378e-05,2]
[421309513,1777402238000,-334.0,9.599e-05,2]
[421309514,1777402238010,-255.0,9.603e-05,2]
[421309515,1777402238020,-565.15,9.652e-05,2]
[421309516,1777402238029,-565.15,9.926e-05,2]
[421309518,1777402238039,-156.0,9.995e-05,2]
[421309519,1777402238049,-153.64030021,0.0001,2]
[421309520,1777402238058,-159.64273965,0.0001,2]
[421309521,1777402238068,-151.0,0.0001,2]
[421309522,1777402238078,-151.0,0.0001,2]
[421309544,1777402238333,-151.0,0.0001,2]
[421309546,1777402238343,-151.0,0.0001,2]
[421309548,1777402238353,-151.0,0.0001,2]
[421309551,1777402238364,-151.0,0.0001,2]
[421309553,1777402238373,-151.0,0.0001,2]
[421309555,1777402238383,-151.0,0.0001,2]
[421309557,1777402238392,-151.0,0.0001,2]
[421309559,1777402238402,-151.0,0.0001,2]
[421309561,1777402238411,-151.0,0.0001,2]
[421309563,1777402238421,-151.0,0.0001,2]
[421309565,1777402238430,-151.0,0.0001,2]
[421309567,1777402238440,-151.0,0.0001,2]
[421309568,1777402238449,-151.0,0.0001,2]
[421309570,1777402238459,-151.0,0.0001,2]
[421309573,1777402238468,-151.0,0.0001,2]
[421309575,1777402238478,-151.0,0.0001,2]
[421309577,1777402238487,-151.0,0.0001,2]
[421309579,1777402238496,-271.94652768,0.0001,2]
[421309581,1777402238506,-236.19815902,0.0001,2]
[421309583,1777402238515,-425.85975572,0.0001,2]
[421309585,1777402238524,-376.92691995,0.0001,2]
[421309587,1777402238533,-407.49770439,0.0001,2]
[421309589,1777402238543,-324.0,0.00010082,2]
[421309591,1777402238552,-565.1767081,0.000102,2]
[421309593,1777402238561,-433.0,0.00010564,2]
[421309595,1777402238570,-150.0,0.000108,2]
[421309597,1777402238579,-150.0,0.000108,2]
[421309599,1777402238588,-150.0,0.000108,2]
[421309601,1777402238597,-150.0,0.000108,2]
[421309603,1777402238607,-150.0,0.000108,2]
[421309605,1777402238616,-404.58,0.00010868,2]
[421309607,1777402238625,-1421.47789294,0.000109,2]
[421309609,1777402238634,-250.0,0.00010959,2]
[421309611,1777402238643,-234.32,0.00010989,2]
[421309613,1777402238651,-467.92,0.00010989,2]
[421309615,1777402238660,-150.0,0.00010989,2]
[421309617,1777402238671,-374.78,0.00010989,2]
[421309619,1777402238680,-1458.79,0.00010989,2]
[421309621,1777402238689,-1957.78,0.00010989,2]
[421309623,1777402238698,-150.0,0.00010989,2]
[421309625,1777402238708,-14464.8,0.00011134,2]
[421309627,1777402238717,-2163.91,0.00011134,2]
[421309629,1777402238726,-242.12,0.0001122,2]
[421309631,1777402238735,-1145.31,0.0001122,2]
[421309633,1777402238744,-735.01,0.0001122,2]
[421309635,1777402238754,-271.14923158,0.00011235,2]
[421309637,1777402238764,-9999.99,0.00011281,2]
[421309639,1777402238773,-150.0,0.000114,2]
[421309641,1777402238783,-623.0,0.00011519,2]
[421309643,1777402238792,-3532.0,0.00011519,2]
[421309645,1777402238803,-1350.0,0.00011519,2]
[421309647,1777402238812,-1055.324,0.00011519,2]
[421309649,1777402238821,-1266.0,0.00011519,2]
[421309651,1777402238830,-150.0,0.00011519,2]
[421309653,1777402238839,-416.0,0.00011519,2]
[421309655,1777402238848,-150.0,0.00011519,2]
[421309657,1777402238856,-3782.0,0.00011519,2]
[421309659,1777402238865,-3938.0,0.000116,2]
[421309661,1777402238875,-736.0,0.0001162,2]
[421309663,1777402238884,-514.93,0.000117,2]
[421309665,1777402238894,-3060.3478945,0.0001176,2]
[421309667,1777402238903,-2000.0,0.000118,2]
[421309669,1777402238912,-1157.22138105,0.00011879,3]
[421309671,1777402238922,-187.88957363,0.000119,2]
[421309673,1777402238931,-5000.0,0.000119,2]
[421309675,1777402238940,-1095.45000761,0.00011901,3]
[421309677,1777402238949,-1095.45000761,0.00011902,3]
[421309679,1777402238959,-1095.45000761,0.00011902,3]
[421309681,1777402238968,-1095.45000761,0.00011903,3]
[421309683,1777402238977,-150.0,0.00011922,2]
[421309685,1777402238986,-378.42799276,0.00011927,2]
[421309687,1777402238996,-1095.4500076,0.00011959,3]
[421309689,1777402239005,-1095.45000761,0.0001196,3]
[421309691,1777402239014,-1064.5595423,0.00011961,2]
[421309693,1777402239024,-1093.83820704,0.00011972,3]
[421309695,1777402239033,-1157.22138104,0.00011972,3]
[421309697,1777402239043,-577.29792467,0.00011973,2]
[421309698,1777402239052,-500.0,0.00011973,2]
[421309700,1777402239061,-500.0,0.00011973,2]
[421309702,1777402239071,-210.15371176,0.00011973,2]
[421309704,1777402239080,-500.0,0.00011973,2]
[421309707,1777402239090,-500.0,0.00011973,2]
[421309709,1777402239099,-500.0,0.00011973,2]
[421309711,1777402239109,-500.0,0.00011973,2]
[421309712,1777402239118,-500.0,0.00011973,2]
[421309714,1777402239127,-351.50145438,0.00011973,2]
[421309716,1777402239136,-163.3638263,0.00011973,2]
[421309719,1777402239146,-500.0,0.00011973,2]
[421309721,1777402239155,-1010.11438529,0.0001199,2]
[421309723,1777402239164,-244.0,0.00012,5]
[421309725,1777402239174,-156.0,0.00012,5]
[421309727,1777402239183,-638612.01997368,0.00012,2]
[421309729,1777402239196,-1128.37587025,0.00012,2]
[421309870,1777402240524,-403.46388559,8.73e-05,2]
[421309877,1777402240577,-96.53611441,8.73e-05,2]
[421309879,1777402240586,-500.0,8.73e-05,2]
[421309881,1777402240596,-500.0,8.73e-05,2]
[421309883,1777402240605,-500.0,8.73e-05,2]
[421309884,1777402240614,-500.0,8.73e-05,2]